lending/lending_fUSD_20240703
["ID","MTS","AMOUNT","RATE_DAILY","PERIOD"]
[331043745,1720036232198,-1286.28540471,0.00013,2]
[331043746,1720036232208,-5000.0,0.0001331,2]
[331043747,1720036232217,-403.77526405,0.00013321,2]
[331043748,1720036232228,-465.25473595,0.00013321,2]
[331043749,1720036232238,-635.75520936,0.00013321,2]
[331043750,1720036232249,-2063.86479064,0.00013321,2]
[331043751,1720036232258,-300.0,0.00013328,2]
[331043752,1720036232268,-526.78,0.00013329,2]
[331043753,1720036232277,-250.0,0.00013329,2]
[331043754,1720036232286,-250.0,0.00013363,2]
[331043755,1720036232295,-1034.18791121,0.00013376,2]
[331043756,1720036232306,-5329.45931921,0.00013376,2]
[331043757,1720036232526,-2030.4512864,0.00013376,2]
[331043758,1720036232538,-295.44814184,0.00013376,2]
[331043759,1720036232558,-756.03810701,0.00013376,2]
[331043760,1720036232569,-2249.59742892,0.00013376,2]
[331043761,1720036232581,-3648.37780541,0.00013376,2]
[331043762,1720036232590,-729.19,0.00013424,2]
[331043763,1720036232600,-150.0,0.00013507,2]
[331043764,1720036232610,-3226.35,0.00013523,2]
[331043765,1720036232619,-150.0,0.00013593,2]
[331043766,1720036232628,-499.99,0.00013593,2]
[331043767,1720036232638,-190.77229544,0.00013699,2]
[331043768,1720036232647,-299.99,0.00013699,2]
[331043770,1720036232656,-250.18977039,0.00013699,2]
[331043772,1720036232665,-150.35,0.00013771,2]
[331043774,1720036232673,-393.63,0.00013777,2]
[331043776,1720036232682,-11753.68399662,0.0001387,2]
[331043778,1720036232692,-150.99,0.0001387,2]
[331043780,1720036232701,-514.76843544,0.0001391,2]
[331043782,1720036232710,-5024.42782141,0.0001391,2]
[331043784,1720036232719,-528.96,0.0001399,3]
[331043786,1720036232728,-178802.56868926,0.00014,2]
[331043788,1720036232737,-150.35,0.0001401,2]
[331043791,1720036232746,-150.35,0.0001425,2]
[331043793,1720036232756,-150.35,0.00014489,2]
[331043795,1720036232765,-434.93719891,0.00014499,2]
[331043797,1720036232775,-157.52085627,0.00014499,2]
[331043799,1720036232784,-451.20366451,0.00014499,2]
[331043800,1720036232793,-500.0,0.00014602,2]
[331043803,1720036232803,-500.0,0.00014602,2]
[331043805,1720036232812,-500.0,0.00014602,2]
[331043806,1720036232821,-500.0,0.00014602,2]
[331043807,1720036232830,-420.0,0.00014611,2]
[331043808,1720036232840,-186.21,0.000147,2]
[331043809,1720036232849,-186.21,0.00014704,2]
[331043810,1720036232858,-186.21,0.00014707,2]
[331043811,1720036232868,-186.21,0.00014711,2]
[331043812,1720036232877,-186.21,0.00014715,2]
[331043813,1720036232886,-186.21,0.00014719,2]
[331043814,1720036232895,-186.21,0.00014723,2]
[331043815,1720036232904,-186.21,0.00014727,2]
[331043816,1720036232913,-186.21,0.00014731,2]
[331043817,1720036232923,-186.21,0.00014734,2]
[331043818,1720036232933,-186.21,0.00014738,2]
[331043819,1720036232941,-186.21,0.00014742,2]
[331043820,1720036232950,-186.21,0.00014746,2]
[331043821,1720036232959,-186.21,0.0001475,2]
[331043822,1720036232968,-186.21,0.00014754,2]
[331043823,1720036232977,-186.21,0.00014758,2]
[331043824,1720036232986,-186.21,0.00014762,2]
[331043825,1720036232995,-186.21,0.00014765,2]
[331043826,1720036233004,-186.21,0.00014769,2]
[331043827,1720036233013,-186.21,0.00014773,2]
[331043828,1720036233022,-514.76843539,0.00014809,2]
[331043829,1720036233031,-5024.42782134,0.00014809,2]
[331043830,1720036233040,-476.10316361,0.00014849,2]
[331043831,1720036233049,-473.95008897,0.00014899,2]
[331043832,1720036233058,-18298.96275783,0.00014926,2]
[331043833,1720036233067,-313.84024762,0.00014926,2]
[331043834,1720036233076,-869.03,0.00014986,2]
[331043835,1720036233085,-1340.4581047,0.00014999,2]
[331043836,1720036233094,-169.26,0.00015041,2]
[331043837,1720036233103,-1250.93121007,0.00015166,2]
[331043838,1720036233113,-169.17,0.0001517,2]
[331043839,1720036233122,-343.71,0.00015311,2]
[331043840,1720036233134,-265.83049183,0.00015335,2]
[331043841,1720036233144,-12833.37,0.00015508,2]
[331043842,1720036233153,-514.76843539,0.00015708,2]
[331043843,1720036233162,-5024.42782134,0.00015708,2]
[331043844,1720036233171,-587.0,0.00016019,2]
[331043845,1720036233180,-393.63,0.00016041,2]
[331043846,1720036233190,-500.0,0.00016246,2]
[331043847,1720036233200,-589.10367637,0.00016246,2]
[331043848,1720036233210,-514.76843539,0.00016606,2]
[331043849,1720036233219,-5024.42782134,0.00016606,2]
[331043850,1720036233228,-869.03,0.00016651,2]
[331043851,1720036233238,-172.41,0.00017227,2]
[331043852,1720036233247,-624.0,0.000173,3]
[331043853,1720036233256,-514.76843539,0.00017505,2]
[331043854,1720036233266,-5024.42782134,0.00017505,2]
[331043855,1720036233275,-823.0,0.00017561,2]
[331043856,1720036233284,-500.0,0.0001789,2]
[331043857,1720036233294,-393.63,0.00018305,2]
[331043858,1720036233303,-869.03,0.00018316,2]
[331043859,1720036233312,-514.76843539,0.00018404,2]
[331043860,1720036233321,-1401.48538781,0.00018759,7]
[331043861,1720036233331,-235.52357085,0.00018835,2]
[331043862,1720036233340,-438.1115069,0.00018835,2]
[331043863,1720036233349,-365.05601346,0.00018899,2]
[331043864,1720036233359,-684.90615013,0.00018899,2]
[331043865,1720036233368,-512.19400641,0.00018899,2]
[331043866,1720036233377,-202.25757491,0.00018919,2]
[331043867,1720036233386,-169.17,0.00018962,2]
[331043868,1720036233395,-1250.0,0.00019,2]
[331043869,1720036233404,-155.0,0.00019177,2]
[331043870,1720036233414,-250.0,0.00019178,2]
[331043871,1720036233423,-625.64470959,0.00019229,2]
[331043872,1720036233432,-720.0,0.00019252,2]
[331043873,1720036233441,-650.91919934,0.00019299,2]
[331043874,1720036233451,-514.76843539,0.00019303,2]
[331043875,1720036233460,-164.88,0.00019345,2]
[331043876,1720036233471,-227.12084219,0.0001935,2]
[331043877,1720036233479,-227.12084219,0.0001935,2]
[331043878,1720036233488,-285.98048656,0.00019352,2]
[331043879,1720036233501,-1454.08303882,0.00019354,2]
[331043880,1720036233512,-1056.9701805,0.00019451,2]
[331043881,1720036233522,-169.1,0.00019736,2]
[331043882,1720036233531,-442.73989055,0.00019964,2]
[331043883,1720036233543,-869.03,0.00019981,2]
[331043884,1720036233552,-8785.8597783,0.00019997,2]
[331043885,1720036233562,-514.76843539,0.00020201,2]
[331043886,1720036233571,-1250.0,0.000205,2]
[331043887,1720036233581,-182.23597,0.00020523,2]
[331043888,1720036233590,-182.23597,0.00020523,2]
[331043889,1720036233600,-829.0,0.00020528,2]
[331043890,1720036233610,-393.63,0.00020569,2]
[331043891,1720036233620,-2202.23461041,0.00020778,2]
[331043892,1720036233630,-172.41,0.00020882,2]
[331043893,1720036233639,-323.37283968,0.00021,2]
[331043894,1720036233649,-182.23597,0.00021037,2]
[331043895,1720036233659,-169.26,0.00021058,2]
[331043896,1720036233668,-991.73839617,0.0002106,2]
[331043897,1720036233679,-514.76843539,0.000211,2]
[331043898,1720036233690,-173.78363952,0.0002118,2]
[331043899,1720036233699,-150.0,0.00021247,2]
[331043900,1720036233713,-150.0,0.00021248,2]
[331043901,1720036233723,-150.0,0.0002125,2]
[331043902,1720036233732,-318.11062296,0.0002127,2]
[331043903,1720036233742,-181.04384057,0.0002127,2]
[331043904,1720036233752,-6463.0961,0.0002127,2]
[331043905,1720036233763,-1254.7553,0.0002127,2]
[331043906,1720036233774,-15389.3223,0.0002127,2]
[331043907,1720036233783,-1908.35218,0.0002128,2]
[331043908,1720036233792,-150.0,0.0002131,2]
[331043909,1720036233802,-500.0,0.00021313,2]
[331043910,1720036233811,-200.0,0.00021313,2]
[331043911,1720036233819,-150.0,0.00021317,2]
[331043912,1720036233828,-150.0,0.00021347,2]
[331043913,1720036233837,-265.20933313,0.00021347,2]
[331043914,1720036233849,-151.0,0.0002135,2]
[331043915,1720036233858,-151.0,0.0002135,2]
[331043916,1720036233867,-151.0,0.0002135,2]
[331043917,1720036233878,-151.0,0.0002135,2]
[331043918,1720036233887,-151.0,0.0002135,2]
[331043919,1720036233896,-151.0,0.0002135,2]
[331043920,1720036233905,-151.0,0.0002135,2]
[331043921,1720036233914,-151.0,0.0002135,2]
[331043922,1720036233923,-5334.85684971,0.0002135,2]
[331043923,1720036233933,-285.75148297,0.0002135,2]
[331043924,1720036233943,-150.0,0.00021356,2]
[331043925,1720036233952,-151.0,0.0002136,2]
[331043926,1720036233962,-151.0,0.0002136,2]
[331043927,1720036233971,-151.0,0.0002136,2]
[331043928,1720036233980,-151.0,0.0002136,2]
[331043929,1720036233988,-223.436928,0.0002136,2]
[331043930,1720036233998,-151.0,0.0002136,2]
[331043931,1720036234006,-151.0,0.0002136,2]
[331043932,1720036234015,-151.0,0.0002136,2]
[331043933,1720036234024,-151.0,0.0002136,2]
[331043934,1720036234033,-151.0,0.0002136,2]
[331043935,1720036234042,-151.0,0.0002136,2]
[331043936,1720036234051,-151.0,0.0002136,2]
[331043937,1720036234060,-151.0,0.0002136,2]
[331043938,1720036234069,-384.321863,0.0002136,2]
[331043939,1720036234079,-151.0,0.0002136,2]
[331043940,1720036234087,-384.321863,0.0002136,2]
[331043941,1720036234097,-366.928235,0.0002136,2]
[331043942,1720036234106,-366.928235,0.0002136,2]
[331043943,1720036234115,-64018.2821965,0.0002136,2]
[331043944,1720036234124,-152.184475,0.0002137,2]
[331043945,1720036234134,-152.184475,0.0002137,2]
[331043946,1720036234143,-295.52212,0.0002137,2]
[331043947,1720036234152,-196.696821,0.0002137,2]
[331043948,1720036234161,-151.0,0.0002137,2]
[331043949,1720036234170,-151.0,0.0002137,2]
[331043950,1720036234180,-151.0,0.0002137,2]
[331043951,1720036234191,-151.0,0.0002137,2]
[331043952,1720036234200,-151.0,0.0002137,2]
[331043953,1720036234209,-151.0,0.0002137,2]
[331043954,1720036234218,-151.0,0.0002137,2]
[331043955,1720036234227,-151.0,0.0002137,2]
[331043956,1720036234236,-151.0,0.0002137,2]
[331043957,1720036234246,-384.321863,0.0002137,2]
[331043958,1720036234256,-151.0,0.0002137,2]
[331043959,1720036234265,-384.321863,0.0002137,2]
[331043960,1720036234275,-366.928235,0.0002137,2]
[331043961,1720036234284,-366.928235,0.0002137,2]
[331043962,1720036234293,-151.0,0.0002137,2]
[331043963,1720036234302,-1841.8566,0.0002137,2]
[331043964,1720036234311,-51560.42594712,0.0002137,2]
[331043974,1720036238232,-5024.42782134,0.00018404,2]
[331043975,1720036238243,-1629.84274034,0.00018717,2]
[331043976,1720036238253,-378.6472136,0.00018899,2]
[331043977,1720036238263,-2264.40045617,0.0002137,2]
[331043978,1720036238275,-1219.17859107,0.0002137,2]
[331043979,1720036238287,-2003.3007,0.0002137,2]
[331043980,1720036238298,-2004.82794987,0.0002137,2]
[331043981,1720036238450,-381.41348933,0.0002137,2]
[331043982,1720036238512,-696.45384,0.0002137,2]
[331043987,1720036240525,-392.82938887,0.00019303,2]
[331043988,1720036240700,-1271.7733793,0.00019303,2]
[331044047,1720036246368,-155.0,0.00014926,2]
[331044048,1720036246378,-227.12084219,0.00019299,2]
[331044049,1720036246388,-3359.82505317,0.00019303,2]
[331044050,1720036246398,-5024.42782134,0.00020201,2]
[331044051,1720036246407,-37750.74878861,0.0002137,2]
[331044052,1720036246423,-3025.00367918,0.0002137,2]
[331044053,1720036246434,-1336.47804719,0.0002137,2]
[331044054,1720036246530,-532.73319864,0.0002137,2]
[331044124,1720037433444,-379.04217238,0.00016808,2]
[331044125,1720037433454,-861.92064226,0.00017199,2]
[331044126,1720037433513,-3176.504,0.00017199,2]
[331044127,1720037433577,-6802.66016262,0.00017199,2]
[331044149,1720037438715,-189.9449251,0.00017199,2]
[331044150,1720037438724,-2602.0,0.000173,3]
[331044151,1720037438734,-313.64,0.00017713,2]
[331044152,1720037438743,-2874.4150749,0.00018432,2]
[331044153,1720037438754,-300.97726413,0.00018432,2]
[331044154,1720037438764,-2631.77911038,0.00018739,2]
[331044155,1720037438773,-684.90615013,0.00018759,2]
[331044156,1720037438782,-684.90615013,0.00018759,2]
[331044157,1720037438791,-235.40348138,0.00018764,2]
[331044158,1720037438800,-163.58641568,0.00018864,2]
[331044159,1720037438809,-155.21845942,0.00018864,2]
[331044160,1720037438818,-625.64470959,0.00018864,2]
[331044161,1720037438828,-403.57810878,0.00018899,2]
[331044162,1720037438837,-227.12084219,0.00018919,2]
[331044163,1720037439019,-227.12084219,0.00018919,2]
[331044164,1720037439029,-202.25757491,0.00018919,2]
[331044165,1720037439039,-626.9635138,0.00018999,2]
[331044166,1720037439048,-155.0,0.00019069,2]
[331044167,1720037439058,-155.0,0.00019069,2]
[331044168,1720037439068,-475.49616812,0.00019077,2]
[331044169,1720037439079,-150.99,0.00019177,2]
[331044170,1720037439089,-1250.0,0.000195,2]
[331044171,1720037439099,-169.17,0.00019552,2]
[331044172,1720037439108,-250.0,0.00019557,2]
[331044173,1720037439118,-170.64,0.00019615,30]
[331044174,1720037439127,-250.0,0.00019624,2]
[331044175,1720037439138,-3499.26963085,0.00019821,2]
[331044176,1720037439154,-168.73036915,0.00019821,2]
[331044177,1720037439164,-313.64,0.00019977,2]
[331044178,1720037439174,-205.32220319,0.00019997,2]
[331044179,1720037439183,-1000.0,0.00020441,2]
[331044180,1720037439193,-700.0,0.000206,7]
[331044181,1720037439203,-1500.0,0.000207,7]
[331044182,1720037439213,-155.0,0.00020798,2]
[331044183,1720037439223,-1937.90742765,0.000208,7]
[331044184,1720037439235,-362.09257235,0.000208,7]
[331044185,1720037439245,-129.19742765,0.000209,7]
[331044186,1720037440527,-234.90064229,0.00018864,2]
[331044187,1720037440537,-1686.34104604,0.000209,7]
[331044188,1720037440596,-628.76733255,0.000209,7]
[331044189,1720037440638,-655.69419376,0.000209,7]
[331044190,1720037440649,-150.0,0.00021238,2]
[331044191,1720037440658,-150.0,0.00021261,2]
[331044192,1720037440671,-69.40300071,0.00021285,2]
[331044193,1720037440683,-557.3172081,0.00021285,2]
[331044194,1720037440695,-299.79340781,0.00021285,2]
[331044196,1720037440779,-191.48353172,0.00021285,2]
[331044253,1720037444557,-544.44616769,0.00019997,2]
[331044254,1720037444567,-53.99383231,0.00021274,2]
[331044264,1720037446535,-155.0,0.00018999,2]
[331044265,1720037446545,-104.68925539,0.00021,2]
[331044267,1720037447711,-398.31074461,0.00021,2]
[331044268,1720037447721,-204.77016769,0.00021274,2]
[331044269,1720037447731,-129.17162337,0.00021285,2]
[331044270,1720037447742,-2185.71358206,0.00021285,2]
[331044311,1720037759933,684.33156873,0.00024657,60]
[331044350,1720038631672,-205.7897499,0.00014502,2]
[331044351,1720038631681,-600.0,0.00014602,2]
[331044352,1720038631691,-400.0,0.00014602,2]
[331044353,1720038631700,-367.72,0.00017745,2]
[331044354,1720038631709,-1069.13006944,0.00018649,2]
[331044355,1720038631718,-446.118849,0.00018804,2]
[331044356,1720038631726,-300.0,0.00018834,2]
[331044357,1720038631735,-578.0073124,0.00018835,2]
[331044358,1720038631826,-47.63739719,0.00018835,2]
[331044359,1720038631836,-308.19482801,0.00018835,2]
[331044360,1720038631845,-155.57295146,0.00018864,2]
[331044361,1720038631859,-438.1115069,0.00018899,2]
[331044362,1720038631869,-157.93170027,0.00018899,2]
[331044363,1720038631878,-155.0,0.00018899,2]
[331044364,1720038631887,-155.60912632,0.00018899,2]
[331044365,1720038631896,-313.29653944,0.00018899,2]
[331044366,1720038631905,-482.87871356,0.00018899,2]
[331044367,1720038631915,-378.47113488,0.00018899,2]
[331044368,1720038631924,-155.0,0.00018919,2]
[331044369,1720038631934,-155.0,0.00018919,2]
[331044370,1720038631943,-155.0,0.00018919,2]
[331044371,1720038631953,-475.03236133,0.00018919,2]
[331044372,1720038631963,-248.30408677,0.00018919,2]
[331044373,1720038631972,-227.12084219,0.00018999,2]
[331044374,1720038631982,-202.25757491,0.00019077,2]
[331044375,1720038631991,-435.08870148,0.00019389,2]
[331044376,1720038632008,-64.90129852,0.00019389,2]
[331044378,1720038632017,-162.33447912,0.00019389,2]
[331044380,1720038632026,-352.90432574,0.00019548,2]
[331044382,1720038632036,-170.64,0.00019551,30]
[331044384,1720038632045,-450.24027991,0.00019565,2]
[331044385,1720038632054,-1767.73,0.00019674,2]
[331044387,1720038632064,-250.0,0.00019684,2]
[331044389,1720038632074,-250.0,0.00019693,2]
[331044390,1720038632084,-155.0,0.00019725,2]
[331044391,1720038632093,-155.0,0.00019863,2]
[331044392,1720038632103,-615.81566763,0.00019863,2]
[331044393,1720038632114,-250.0,0.00019961,2]
[331044394,1720038632125,-2014.92,0.00019961,2]
[331044395,1720038632135,-300.0,0.00019961,2]
[331044396,1720038632145,-3.69316458,0.00019964,2]
[331044397,1720038632157,-1496.56017166,0.00019964,2]
[331044398,1720038632166,-170.87,0.00019988,2]
[331044399,1720038632176,-367.72,0.00020008,2]
[331044400,1720038632185,-164.88,0.00020434,2]
[331044401,1720038632195,-446.94499777,0.000205,2]
[331044402,1720038632204,-500.0,0.000206,7]
[331044403,1720038632213,-136.30483057,0.000207,7]
[331044413,1720038637546,-247.48,0.0001952,2]
[331044414,1720038637555,-963.69516943,0.000207,7]
[331044415,1720038637565,-1700.0,0.000208,7]
[331044416,1720038637574,-2200.0,0.000209,7]
[331044417,1720038637584,-1000.0,0.00021,2]
[331044418,1720038637593,-2707.89893,0.00021285,2]
[331044419,1720038637602,-150.0,0.00021298,2]
[331044420,1720038637615,-19458.2289,0.000213,2]
[331044421,1720038637624,-4875.62,0.00021307,6]
[331044422,1720038637633,-2534.73,0.00021307,6]
[331044423,1720038637643,-435.07006712,0.00021315,2]
[331044424,1720038637656,-1004.88556434,0.0002137,2]
[331044425,1720038637666,-500.0,0.00021374,2]
[331044426,1720038637675,-500.0,0.00021374,2]
[331044427,1720038637683,-500.0,0.00021374,2]
[331044428,1720038637692,-500.0,0.00021374,2]
[331044429,1720038637702,-500.0,0.00021374,2]
[331044430,1720038637711,-500.0,0.00021374,2]
[331044431,1720038637720,-500.0,0.00021374,2]
[331044432,1720038637730,-500.0,0.00021374,2]
[331044433,1720038637739,-500.0,0.00021374,2]
[331044434,1720038637748,-500.0,0.00021374,2]
[331044435,1720038637757,-500.0,0.00021374,2]
[331044436,1720038637767,-500.0,0.00021374,2]
[331044437,1720038637775,-500.0,0.00021374,2]
[331044438,1720038637784,-150.0,0.00021378,2]
[331044439,1720038637794,-181.04384057,0.00021384,2]
[331044440,1720038637803,-1219.1785,0.00021384,2]
[331044441,1720038637813,-8758.4905,0.00021384,2]
[331044442,1720038637822,-435.07006709,0.00021391,2]
[331044443,1720038637832,-491.0,0.000214,4]
[331044444,1720038637841,-171.62856957,0.000214,2]
[331044445,1720038637850,-166.99151512,0.000214,2]
[331044446,1720038637859,-2512.23164071,0.000214,2]
[331044447,1720038637868,-2154.53939116,0.000214,2]
[331044448,1720038637880,-15644.66430884,0.000214,2]
[331044449,1720038637890,-1000.0,0.000214,2]
[331044450,1720038637899,-337.90921791,0.000214,2]
[331044451,1720038637909,-299.58394527,0.000214,2]
[331044452,1720038639928,-155.0,0.00018899,2]
[331044453,1720038639938,-500.0,0.00021374,2]
[331044454,1720038639948,-500.0,0.00021374,2]
[331044455,1720038639959,-500.0,0.00021374,2]
[331044456,1720038639969,-500.0,0.00021374,2]
[331044457,1720038639979,-500.0,0.00021374,2]
[331044458,1720038639988,-500.0,0.00021374,2]
[331044459,1720038640000,-500.0,0.00021374,2]
[331044460,1720038640010,-7017.22870664,0.000214,2]
[331044461,1720038640020,-151.0,0.00021415,2]
[331044462,1720038640030,-1004.88556426,0.00021439,2]
[331044463,1720038640040,-435.07006709,0.00021466,2]
[331044464,1720038640051,-200.0,0.0002147,30]
[331044465,1720038640062,-880.95,0.0002147,3]
[331044466,1720038640073,-4686.35060507,0.00021479,2]
[331044467,1720038640083,-14059.0518152,0.00021479,2]
[331044468,1720038640093,-284.0,0.0002148,30]
[331044469,1720038640104,-223.46,0.0002148,30]
[331044470,1720038640114,-200.0,0.0002148,30]
[331044471,1720038640124,-192140.374808,0.0002148,2]
[331044472,1720038640135,-7922.5242256,0.00021483,2]
[331044473,1720038640145,-36422.83428837,0.00021483,2]
[331044474,1720038640159,-18359.80417903,0.00021483,2]
[331044475,1720038640169,-151.0,0.00021484,2]
[331044476,1720038640179,-151.0,0.00021484,2]
[331044477,1720038640189,-151.0,0.00021484,2]
[331044478,1720038640199,-151.0,0.00021484,2]
[331044479,1720038640210,-151.0,0.00021484,2]
[331044480,1720038640220,-151.0,0.00021484,2]
[331044481,1720038640230,-151.0,0.00021484,2]
[331044482,1720038640241,-470.177807,0.00021484,2]
[331044483,1720038640251,-470.177807,0.00021484,2]
[331044484,1720038640261,-151.0,0.00021484,2]
[331044485,1720038640272,-151.0,0.00021484,2]
[331044486,1720038640282,-151.0,0.00021484,2]
[331044487,1720038640295,-151.0,0.00021484,2]
[331044488,1720038640306,-151.0,0.00021484,2]
[331044489,1720038640316,-151.0,0.00021484,2]
[331044490,1720038640327,-151.0,0.00021484,2]
[331044491,1720038640338,-285.334224,0.00021484,2]
[331044492,1720038640348,-285.334224,0.00021484,2]
[331044494,1720038640360,-367.342314,0.00021484,2]
[331044496,1720038640373,-151.0,0.00021484,2]
[331044498,1720038640383,-367.342314,0.00021484,2]
[331044500,1720038640393,-151.0,0.00021484,2]
[331044502,1720038640403,-249.975809,0.00021484,2]
[331044504,1720038640413,-249.975809,0.00021484,2]
[331044506,1720038640423,-151.0,0.00021484,2]
[331044508,1720038640434,-151.0,0.00021484,2]
[331044510,1720038640444,-151.0,0.00021484,2]
[331044512,1720038640454,-151.0,0.00021484,2]
[331044514,1720038640464,-578.348686,0.00021484,2]
[331044516,1720038640475,-151.0,0.00021484,2]
[331044518,1720038640485,-578.348686,0.00021484,2]
[331044519,1720038640495,-151.0,0.00021484,2]
[331044520,1720038640504,-151.0,0.00021484,2]
[331044521,1720038640515,-151.0,0.00021484,2]
[331044522,1720038640525,-151.0,0.00021484,2]
[331044523,1720038640535,-151.0,0.00021484,2]
[331044524,1720038640545,-151.0,0.00021484,2]
[331044525,1720038640555,-151.0,0.00021484,2]
[331044526,1720038640566,-151.0,0.00021484,2]
[331044527,1720038640576,-232.306565,0.00021484,2]
[331044528,1720038640585,-232.306565,0.00021484,2]
[331044529,1720038640595,-151.0,0.00021484,2]
[331044530,1720038640606,-152.975822,0.00021484,2]
[331044531,1720038640618,-151.0,0.00021484,2]
[331044532,1720038640628,-151.0,0.00021484,2]
[331044533,1720038640640,-151.0,0.00021484,2]
[331044534,1720038640650,-151.0,0.00021484,2]
[331044535,1720038640660,-151.0,0.00021484,2]
[331044536,1720038640670,-151.0,0.00021484,2]
[331044537,1720038640680,-637.0050233,0.00021484,2]
[331044538,1720038640690,-151.0,0.00021484,2]
[331044539,1720038640700,-151.0,0.00021484,2]
[331044540,1720038640711,-151.0,0.00021484,2]
[331044541,1720038640720,-151.0,0.00021484,2]
[331044542,1720038640731,-151.0,0.00021484,2]
[331044543,1720038640740,-151.0,0.00021484,2]
[331044544,1720038640750,-151.0,0.00021484,2]
[331044545,1720038640759,-151.0,0.00021484,2]
[331044546,1720038640769,-929.769365,0.00021484,2]
[331044547,1720038640779,-929.769365,0.00021484,2]
[331044548,1720038640789,-151.0,0.00021484,2]
[331044549,1720038640799,-231.46015,0.00021484,2]
[331044550,1720038640810,-231.46015,0.00021484,2]
[331044551,1720038640820,-467.312592,0.00021484,2]
[331044552,1720038640830,-204.64839,0.00021484,2]
[331044553,1720038640839,-467.312592,0.00021484,2]
[331044554,1720038640849,-151.0,0.00021484,2]
[331044555,1720038640859,-637.0050233,0.00021485,2]
[331044556,1720038640871,-6444.7354182,0.00021485,2]
[331044557,1720038640880,-44564.0303998,0.00021485,2]
[331044558,1720038640892,-209.73197584,0.00021489,2]
[331044559,1720038640902,-3825.35994597,0.00021489,2]
[331044560,1720038640911,-151.0,0.00021489,2]
[331044561,1720038640921,-151.0,0.00021489,2]
[331044562,1720038640931,-151.0,0.00021489,2]
[331044563,1720038640941,-151.0,0.00021489,2]
[331044564,1720038640952,-255.577204,0.00021489,2]
[331044565,1720038640962,-151.0,0.00021489,2]
[331044566,1720038640972,-151.0,0.00021489,2]
[331044567,1720038640982,-151.0,0.00021489,2]
[331044568,1720038640992,-151.0,0.00021489,2]
[331044569,1720038641003,-151.0,0.00021489,2]
[331044570,1720038641013,-151.0,0.00021489,2]
[331044571,1720038641024,-151.0,0.00021489,2]
[331044572,1720038641034,-151.0,0.00021489,2]
[331044573,1720038641044,-470.177807,0.00021489,2]
[331044574,1720038641054,-470.177807,0.00021489,2]
[331044575,1720038641063,-151.0,0.00021489,2]
[331044576,1720038641073,-151.0,0.00021489,2]
[331044577,1720038641083,-151.0,0.00021489,2]
[331044578,1720038641092,-151.0,0.00021489,2]
[331044579,1720038641102,-151.0,0.00021489,2]
[331044580,1720038641114,-151.0,0.00021489,2]
[331044581,1720038641125,-285.334224,0.00021489,2]
[331044582,1720038641135,-285.334224,0.00021489,2]
[331044583,1720038641144,-367.342314,0.00021489,2]
[331044584,1720038641154,-151.0,0.00021489,2]
[331044585,1720038641164,-367.342314,0.00021489,2]
[331044586,1720038641173,-209.173984,0.00021489,2]
[331044587,1720038641182,-249.975809,0.00021489,2]
[331044588,1720038641192,-249.975809,0.00021489,2]
[331044589,1720038641202,-151.0,0.00021489,2]
[331044590,1720038641211,-151.0,0.00021489,2]
[331044591,1720038641221,-151.0,0.00021489,2]
[331044592,1720038641230,-245.098639,0.00021489,2]
[331044593,1720038641239,-151.0,0.00021489,2]
[331044594,1720038641249,-468.868598,0.00021489,2]
[331044595,1720038641259,-151.0,0.00021489,2]
[331044596,1720038641268,-397.807322,0.00021489,2]
[331044597,1720038641278,-468.868598,0.00021489,2]